[Event "GEO-AZE Women Match 2024"]
[Site "Tbilisi"]
[Date "2024.02.27"]
[Round "1.1"]
[White "Mammadzada, Gunay"]
[Black "Khotenashvili, Bella"]
[Result "0-1"]
[ECO "E06"]
[WhiteElo "2449"]
[BlackElo "2467"]
[Annotator "TA"]
[PlyCount "94"]
[EventDate "2024.02.26"]
[EventType "team-tourn"]
[EventCountry "GEO"]
[SourceTitle "playchess.com"]
[Source "ChessBase"]
[SourceQuality "1"]
[WhiteTeam "Azerbaijan"]
[BlackTeam "Georgia"]
[WhiteTeamCountry "AZE"]
[BlackTeamCountry "GEO"]
[TimeControl "40/5400+30:1800+30"]

{[%evp 11,94,20,36,31,28,29,37,39,36,45,40,20,24,6,13,2,0,2,65,45,119,27,51,38,57,26,49,45,54,39,50,0,80,31,49,52,20,3,10,5,40,-91,19,-68,-73,-61,-45,-25,0,0,0,-179,-206,-261,-258,-246,-275,-273,-275,-298,-298,-302,-294,-298,-306,-351,-365,-353,-366,-366,-366,-366,-363,-830,-815,-830,-818,-822,-792,-787,-786,-779,-746,-722,-660]} 1. Nf3 {[%emt 0:00:04]} d5 {[%emt 0:00:23]} 2. d4 {[%emt 0:00:17]} Nf6 {[%emt 0:00:07]} 3. c4 {[%emt 0:00:05]} e6 {[%emt 0:00:04]} 4. g3 {[%emt 0:00:37]} Be7 {[%emt 0:00:07]} 5. Bg2 {[%emt 0:00:26]} O-O {[%emt 0:00:07]} 6. O-O {[%emt 0:00:06]} a5 {[%emt 0:00:09]} 7. Qc2 {[%emt 0:07:16]} Nc6 {[%emt 0:00:08]} 8. a3 {[%emt 0:03:01]} dxc4 {[%emt 0:00:09]} 9. Qxc4 {[%emt 0:01:40] White is slightly better.} a4 {[%emt 0:00:07]} 10. Nc3 {[%emt 0:11:52]} Bd7 {[%emt 0:00:14]} 11. Bf4 {[%emt 0:06:43][%cal Oe2e4]} (11. Nxa4 $2 {is the wrong capture.} b5 (11... Nxd4 12. Nc3 $14) 12. Qd3 (12. Qxb5 $2 Nxd4 13. Qd3 Nxf3+ 14. Qxf3 Rxa4 $19) 12... bxa4 $19 (12... Rxa4 $2 13. b3 $19)) 11... Na5 {[%emt 0:00:23]} 12. Qd3 {[%emt 0:02:01]} Nd5 {[%emt 0:06:52]} 13. Rad1 {[%emt 0:09:31]} Nxf4 {[%emt 0:18:18]} 14. gxf4 {[%emt 0:00:08]} Ra6 {[%emt 0:24:23]} ({Black should try} 14... b5 $11) 15. Ne5 $14 {[%emt 0:11:02][%cal Og2b7]} Rb6 {[%emt 0:08:40]} (15... Rd6 $14) 16. Rb1 {[%emt 0:09:37]} (16. Qc2 $16) 16... Rb3 {[%emt 0:09:30][%cal Od7b5]} 17. Rfd1 {[%emt 0:04:30]} Bd6 {[%emt 0:14:00]} 18. Be4 {[%emt 0:03:19]} f5 {[%emt 0:03:05]} 19. Bg2 {[%emt 0:00:24]} Kh8 {[%emt 0:08:16]} 20. e3 {[%emt 0:06:26]} Qe8 {[%emt 0:02:00]} 21. d5 {[%emt 0:03:44]} (21. Qc2 $14) 21... Bc8 {[%emt 0:00:25]} (21... Bxe5 $11 22. fxe5 c6) 22. Qd4 {[%emt 0:01:56]} (22. Nf3 $16) 22... b5 $1 {[%emt 0:02:58]} 23. Qa7 {[%emt 0:04:01]} Bxe5 {[%emt 0:01:01]} 24. fxe5 {[%emt 0:01:22]} Nc4 {[%emt 0:00:01][%csl LRb2,LRe5]} 25. Qxc7 {[%emt 0:04:13][%cal Oc3b5]} Nxb2 {[%emt 0:00:33]} 26. Rdc1 {[%emt 0:01:40] [#]} (26. Rd4 $14 {stays ahead.}) 26... Nc4 {[%emt 0:00:28]} (26... f4 $1 $17 {aiming for ...Nd3.} 27. exf4 Nd3) 27. Rxb3 {[%emt 0:03:52]} (27. Nxa4 $11 Rxb1 28. Rxb1) 27... axb3 $15 {[%emt 0:00:01]} 28. Rb1 {[%emt 0:00:21]} b2 {[%emt 0:00:33] Hoping for ...f4.} 29. d6 {[%emt 0:00:55][%cal Oa3a4] And now a4! would win.} Nxe5 {[%emt 0:01:18]} (29... f4 {feels hotter.} 30. Qe7 fxe3 31. fxe3 Bd7) 30. Rxb2 {[%emt 0:00:12]} Bd7 {[%emt 0:00:12]} 31. Nxb5 $2 {[%emt 0:03:36] [#] White is now going downhill.} Bxb5 $19 {[%emt 0:00:26]} 32. Qc5 {[%emt 0:01:00]} Nd3 $1 {[%emt 0:00:28][%csl LRb2,LRc5]} 33. Qxb5 {[%emt 0:00:27]} Nxb2 {[%emt 0:00:02]} 34. Qxb2 {[%emt 0:00:05][%mdl 4096] Endgame. KQR-KQB} Qd7 {[%emt 0:00:31]} 35. Qe5 {[%emt 0:00:59]} Rd8 {[%emt 0:00:09]} 36. a4 {[%emt 0:00:29]} Qxd6 {[%emt 0:00:45]} ({Weaker is} 36... Qxa4 37. Qxe6 Qd1+ 38. Bf1 $17) 37. Qxd6 {[%emt 0:00:17]} Rxd6 {[%emt 0:00:01] KR-KB} 38. Bf1 {[%emt 0:00:06]} Rd1 {[%emt 0:01:59]} 39. a5 {[%emt 0:01:05]} Ra1 {[%emt 0:00:02]} 40. a6 {[%emt 0:00:00]} g5 {[%emt 0:00:00]} 41. Kg2 {[%emt 0:00:17]} e5 {[%emt 0:04:56]} 42. f3 $2 {[%emt 0:01:12]} (42. Bb5) 42... Kg7 {[%emt 0:05:17] Black is clearly winning.} 43. Bd3 {[%emt 0:01:53]} Kf6 {[%emt 0:01:09]} 44. Bc4 {[%emt 0:01:38]} Ra4 {[%emt 0:02:50]} 45. Bb5 {[%emt 0:00:30]} Ra2+ {[%emt 0:00:20]} 46. Kg3 {[%emt 0:00:52]} Ra3 {[%emt 0:03:28]} 47. Kf2 {[%emt 0:02:15]} h5 {[%emt 0:17:05] Weighted Error Value: White=0.39/Black=0.15 (very precise) .  Loses game:     	White=1     	---        Mistake:       	White=6     	Black=4      Inaccurate:     	White=1     	---        OK:         	White=15    	Black=19     Best:        	White=1     	Black=4      Strong:       	---       	Black=1} 0-1

[Event "GEO-AZE Women Match 2024"]
[Site "Tbilisi"]
[Date "2024.02.27"]
[Round "1.2"]
[White "Fataliyeva, Ulviyya"]
[Black "Arabidze, Meri"]
[Result "0-1"]
[ECO "C79"]
[WhiteElo "2384"]
[BlackElo "2466"]
[Annotator "TA"]
[PlyCount "96"]
[EventDate "2024.02.26"]
[EventType "team-tourn"]
[EventCountry "GEO"]
[SourceTitle "playchess.com"]
[Source "ChessBase"]
[SourceQuality "1"]
[WhiteTeam "Azerbaijan"]
[BlackTeam "Georgia"]
[WhiteTeamCountry "AZE"]
[BlackTeamCountry "GEO"]
[TimeControl "40/5400+30:1800+30"]

{[%evp 11,96,33,17,32,32,20,31,12,15,0,12,0,4,-60,-59,-86,-85,-163,-168,-218,-220,-245,-241,-241,-139,-137,-114,-131,-110,-111,-101,-113,-77,-281,-264,-278,-276,-407,-414,-558,-308,-500,-478,-600,-627,-575,-581,-740,-919,-929,-879,-910,-922,-921,-899,-1086,-1082,-925,-578,-725,-715,-693,-377,-914,-888,-864,-848,-934,-925,-858,-341,-922,-912,-917,-853,-1868,-1555,-6023,-5114,-29955,-6222,-29986,-29987,-29986,-29987,-29987,-29988]} 1. e4 {[%emt 0:00:06]} e5 {[%emt 0:00:08]} 2. Nf3 {[%emt 0:00:05]} Nc6 {[%emt 0:00:04]} 3. Bb5 {[%emt 0:00:04]} a6 {[%emt 0:00:04]} 4. Ba4 {[%emt 0:00:05]} Nf6 {[%emt 0:00:06]} 5. O-O {[%emt 0:00:20]} d6 {[%emt 0:00:04]} 6. Bxc6+ {[%emt 0:00:46]} bxc6 {[%emt 0:00:06]} 7. Re1 {[%emt 0:00:14]} Bg4 {[%emt 0:00:21]} 8. d4 {[%emt 0:00:49]} Nd7 {[%emt 0:05:50]} (8... exd4 {seems wilder.} 9. Qxd4 Bxf3 10. e5 dxe5 11. Qxe5+ Be7) 9. h3 {[%emt 0:03:57] White is slightly better.} Bxf3 {[%emt 0:03:25]} 10. Qxf3 {[%emt 0:00:34]} exd4 {[%emt 0:03:11]} 11. c3 {[%emt 0:00:07]} c5 {[%emt 0:05:23]} 12. Qg3 {[%emt 0:10:14]} (12. Qd1 $11) 12... g6 $15 {[%emt 0:10:09]} 13. cxd4 {[%emt 0:07:06]} cxd4 {[%emt 0:00:19]} 14. e5 {[%emt 0:00:33]} dxe5 $19 {[%emt 0:04:50]} 15. Bf4 {[%emt 0:23:39]} ({Don't blunder} 15. Rxe5+ $2 Nxe5 16. Qxe5+ Qe7 $19) (15. Na3 $142 Bg7 16. f4) 15... f6 {[%emt 0:09:57]} 16. Qb3 {[%emt 0:01:55]} Nb6 {[%emt 0:13:18]} 17. Nd2 {[%emt 0:16:25][%cal Of4e5]} Bg7 {[%emt 0:06:46]} (17... Qd5 $19 {Strongly threatening ...Qxb3.} 18. Bg3 (18. Bxe5 $2 fxe5 19. Qxd5 Nxd5 $19) 18... Qxb3 19. Nxb3 O-O-O) 18. Bg3 $17 {[%emt 0:06:22]} Qd5 {[%emt 0:07:01] Hoping for ...Bh6.} 19. f4 {[%emt 0:00:09]} Qxb3 {[%emt 0:06:18]} 20. Nxb3 {[%emt 0:00:34]} O-O-O {[%emt 0:00:42] ...Rhe8 is the strong threat.} 21. fxe5 {[%emt 0:00:12]} fxe5 {[%emt 0:06:49]} 22. Nc5 $2 {[%emt 0:00:10] This move loses the game for White.} (22. Bxe5 $17 {was the only chance.} Bxe5 23. Rxe5) 22... Rhe8 $19 {[%emt 0:04:20]} 23. Nxa6 {[%emt 0:00:07]} d3 {[%emt 0:04:20] White must now prevent ...d2.} 24. Rac1 {[%emt 0:00:39]} (24. Rad1 {is a better defense.}) 24... Nd5 {[%emt 0:00:47]} 25. Red1 {[%emt 0:02:42]} d2 {[%emt 0:02:21]} 26. Rc4 {[%emt 0:09:16]} (26. Rxd2 {might work better.} Bh6 27. Rdc2 Be3+ 28. Kh2 Bxc1 29. Rxc1) 26... Bh6 {[%emt 0:00:12] ...Rd6 would now be deadly.} 27. b4 {[%emt 0:06:45]} Re7 {[%emt 0:03:36] And now ...Ne3 would win.} 28. Bh4 {[%emt 0:02:22]} Be3+ {[%emt 0:00:17]} 29. Kf1 {[%emt 0:00:42]} g5 {[%emt 0:00:54]} 30. Bg3 {[%emt 0:00:08]} Bf4 {[%emt 0:01:08]} 31. Bf2 {[%emt 0:00:50]} e4 {[%emt 0:00:19]} 32. Bc5 {[%emt 0:00:41]} Re6 {[%emt 0:01:14]} 33. b5 {[%emt 0:00:05]} e3 {[%emt 0:01:46] ( -> ...e2+)} 34. Ke2 {[%emt 0:00:06]} Bd6 {[%emt 0:00:46]} 35. Bxd6 {[%emt 0:02:59]} Rdxd6 {[%emt 0:00:07]} 36. Nc5 {[%emt 0:00:24]} Re8 {[%emt 0:00:54]} 37. g3 {[%emt 0:00:46] Inhibits Nf4+.} (37. Nd3) 37... h5 {[%emt 0:00:29][%cal Oh5h4]} 38. Nd3 {[%emt 0:00:57] [#]} h4 $1 {[%emt 0:00:29][%mdl 512]} 39. gxh4 {[%emt 0:01:07]} gxh4 {[%emt 0:00:00]} 40. Rg1 {[%emt 0:00:00]} Nb6 $2 {[%emt 0:00:00]} (40... Rf6 {aiming for ...Ref8.} 41. a4 Rf3 42. Kxf3 e2) 41. Rc2 $2 {[%emt 0:08:55]} (41. Rcg4) 41... Rd4 {[%emt 0:04:47] Threatens to win with ...Nd5.} 42. Rc3 {[%emt 0:02:53]} Nd5 {[%emt 0:03:09]} 43. Ra3 {[%emt 0:00:52] [#]} Ra4 $3 {[%emt 0:01:13][%mdl 512]} 44. Rb3 {[%emt 0:00:59]} (44. Rxa4 Nc3+) 44... Rxa2 {[%emt 0:00:49]} 45. b6 {[%emt 0:02:34]} cxb6 {[%emt 0:02:39]} 46. Rg4 {[%emt 0:02:08]} Ra1 {[%emt 0:01:00][%csl Ga1][%cal Rd2d1] Black mates.} 47. Rc4+ {[%emt 0:00:06]} Kb8 {[%emt 0:00:45][%csl Ga1][%cal Rd2d1]} 48. Nb2 {[%emt 0:00:28]} Re1+ {[%emt 0:00:22] Weighted Error Value: White=0.96/Black=0.44.  Loses game:     	White=1     	---        Mistake:       	White=5     	Black=1      Inaccurate:     	White=2     	Black=2      OK:         	White=6     	Black=9      Best:        	White=2     	Black=4} 0-1

[Event "GEO-AZE Women Match 2024"]
[Site "Tbilisi"]
[Date "2024.02.27"]
[Round "1.3"]
[White "Beydullayeva, Govhar"]
[Black "Batsiashvili, Nino"]
[Result "1-0"]
[ECO "E11"]
[WhiteElo "2374"]
[BlackElo "2451"]
[Annotator "TA"]
[PlyCount "153"]
[EventDate "2024.02.26"]
[EventType "team-tourn"]
[EventCountry "GEO"]
[SourceTitle "playchess.com"]
[Source "ChessBase"]
[SourceQuality "1"]
[WhiteTeam "Azerbaijan"]
[BlackTeam "Georgia"]
[WhiteTeamCountry "AZE"]
[BlackTeamCountry "GEO"]
[TimeControl "40/5400+30:1800+30"]

{[%evp 67,153,597,591,576,562,569,520,415,518,421,381,421,514,464,741,720,676,693,1343,1276,1336,642,1447,1100,1543,1508,1555,1513,1524,1520,1436,1285,5543,5541,5373,5010,11906,6087,5073,1535,1489,1280,946,666,986,986,967,976,963,928,759,672,943,937,915,906,982,1004,29961,29959,5073,2439,29970,29971,29970,29970,29982,0,12838,6687,5181,5126,29980,29981,29981,29982,29982,29983,29982,29967,12833,12848,29984,29984,29984,29983,29987,29988]} 1. d4 {[%emt 0:00:04]} Nf6 {[%emt 0:00:05]} 2. c4 {[%emt 0:00:07]} e6 {[%emt 0:00:03]} 3. Nf3 {[%emt 0:00:15]} Bb4+ {[%emt 0:00:05]} 4. Nbd2 {[%emt 0:01:01]} O-O {[%emt 0:00:10]} 5. a3 {[%emt 0:00:30]} Be7 {[%emt 0:00:06]} 6. g3 {[%emt 0:04:01]} d6 {[%emt 0:06:58]} 7. Bg2 {[%emt 0:01:04]} a5 {[%emt 0:01:53]} 8. O-O {[%emt 0:04:26]} Nc6 {[%emt 0:00:19]} 9. Nb1 {[%emt 0:06:27]} e5 {[%emt 0:00:22]} 10. Nc3 {[%emt 0:00:49]} Bg4 {[%emt 0:03:42]} 11. d5 {[%emt 0:02:53]} Nb8 {[%emt 0:00:30]} 12. h3 {[%emt 0:05:55]} Bd7 {[%emt 0:01:10]} 13. e4 {[%emt 0:05:52]} Na6 {[%emt 0:01:31]} 14. Be3 {[%emt 0:00:21]} Ne8 {[%emt 0:07:27]} 15. Nd2 {[%emt 0:03:19]} Bg5 {[%emt 0:01:26]} 16. f4 {[%emt 0:04:08]} Bh6 {[%emt 0:01:56]} 17. Qe2 {[%emt 0:05:26]} Qe7 {[%emt 0:07:09]} 18. Nf3 {[%emt 0:03:05]} f5 {[%emt 0:10:58]} 19. fxe5 {[%emt 0:10:14]} fxe4 {[%emt 0:05:36]} 20. Nxe4 {[%emt 0:00:56]} Bxe3+ {[%emt 0:00:06]} 21. Qxe3 {[%emt 0:00:01]} dxe5 {[%emt 0:00:17]} 22. c5 {[%emt 0:01:50]} Bf5 {[%emt 0:13:21]} 23. Nfg5 {[%emt 0:08:54]} Bxe4 {[%emt 0:06:53]} 24. Rxf8+ {[%emt 0:05:50]} Qxf8 {[%emt 0:01:09]} 25. Nxe4 {[%emt 0:01:45]} Nf6 {[%emt 0:06:10]} 26. Rf1 {[%emt 0:02:15]} Kh8 {[%emt 0:10:08]} 27. d6 {[%emt 0:02:32]} c6 {[%emt 0:03:09]} 28. g4 {[%emt 0:11:17]} Qg8 {[%emt 0:04:29]} 29. Nxf6 {[%emt 0:02:17]} gxf6 {[%emt 0:00:01]} 30. Rxf6 {[%emt 0:00:10]} Qc4 {[%emt 0:00:05]} 31. Qh6 {[%emt 0:01:18]} Nxc5 {[%emt 0:01:37]} 32. Rf8+ {[%emt 0:01:10]} Rxf8 33. Qxf8+ {[%emt 0:00:00]} Qg8 {[%emt 0:00:09]} 34. Qf6+ {[%emt 0:00:14]} Qg7 {[%emt 0:00:02]} 35. Qd8+ {[%emt 0:00:03]} Qg8 {[%emt 0:00:05]} 36. Qe7 {[%emt 0:03:56]} Qc4 {[%emt 0:02:02]} 37. Qxe5+ {[%emt 0:01:30]} Kg8 {[%emt 0:00:01]} 38. Qe8+ {[%emt 0:01:27]} Kg7 {[%emt 0:00:07]} 39. Qe7+ {[%emt 0:00:57]} Kg6 {[%emt 0:03:44]} 40. Qe5 {[%emt 0:00:00]} a4 {[%emt 0:00:00]} (40... Qc1+ $142 41. Bf1 b5) 41. Kh2 $18 {[%emt 0:12:52]} Kf7 {[%emt 0:07:58]} 42. Kg3 {[%emt 0:05:56]} h6 {[%emt 0:06:52]} 43. Bf3 {[%emt 0:04:08]} Ne6 {[%emt 0:01:37]} 44. Qf5+ {[%emt 0:01:01]} (44. Be4 $142) 44... Kg7 $18 {[%emt 0:01:05]} 45. d7 {[%emt 0:00:54]} Qb3 {[%emt 0:02:15]} 46. h4 {[%emt 0:01:59]} Qe3 {[%emt 0:01:06]} 47. Qxe6 {[%emt 0:02:02]} Qxe6 {[%emt 0:00:02]} 48. d8=Q {[%emt 0:00:05]} (48. d8=R Qe5+ 49. Kh3 Qxb2 $19) 48... Qe5+ {[%emt 0:00:10]} 49. Kh3 {[%emt 0:00:08]} Qxb2 {[%emt 0:00:01]} 50. Qe7+ {[%emt 0:01:00]} Kg8 {[%emt 0:00:02]} 51. h5 {[%emt 0:01:58]} Qc1 {[%emt 0:00:51]} 52. Qe6+ {[%emt 0:02:50]} (52. Qxb7 Qf1+ 53. Bg2 Qd3+ 54. Kh4 Qd8+ 55. Kg3 Qd6+ 56. Kf2 Qd2+ 57. Kf3 Qd5+ 58. Ke3 Qxg2 $11) 52... Kg7 {[%emt 0:00:25]} 53. Qe5+ {[%emt 0:00:50]} (53. Qg6+ $142 Kf8 54. Qd6+ Kf7 55. Qd7+ Kf6 56. Qxb7) 53... Kf7 $18 {[%emt 0:00:25]} 54. Qf5+ {[%emt 0:01:44]} Ke7 {[%emt 0:00:28]} 55. Qe4+ {[%emt 0:00:17]} Kf7 {[%emt 0:03:37]} 56. Qxa4 {[%emt 0:00:10]} Qf1+ {[%emt 0:00:02]} 57. Bg2 {[%emt 0:00:05]} Qd3+ {[%emt 0:00:06]} 58. Kh2 {[%emt 0:00:03]} Qd6+ {[%emt 0:00:11]} 59. Kh1 {[%emt 0:00:02]} Kf6 {[%emt 0:01:25]} 60. Qb3 {[%emt 0:02:59]} Kg5 {[%emt 0:02:01]} 61. Qf3 {[%emt 0:00:14]} ({Weaker is} 61. Qxb7 Qd1+ 62. Kh2 Qd6+ 63. Kh1 (63. Kg1 Qd4+ 64. Kf1 Qd1+ 65. Kf2 Qd2+ 66. Kg1 Qd4+ 67. Kf1 Qd1+ 68. Kf2 Qd2+ 69. Kf3 Qd3+ 70. Kf2 Qd2+ $11) 63... Qd1+ 64. Kh2 Qd6+ 65. Kh3 (65. Kg1 Qd4+ 66. Kf1 Qd1+ 67. Kf2 Qd2+ 68. Kf3 Qd3+ 69. Kf2 Qd2+ 70. Kf3 Qd3+ 71. Kf2 Qd2+ $11) 65... Qd3+ 66. Kh2 Qd6+ $11) 61... Kh4 {[%emt 0:00:49]} 62. Bf1 {[%emt 0:00:41]} b5 {[%emt 0:01:42]} 63. Kg2 {[%emt 0:00:52]} Qe5 {[%emt 0:02:55]} 64. Be2 {[%emt 0:00:30]} Qd6 {[%emt 0:03:41]} 65. Qf2+ {[%emt 0:00:10]} Kg5 {[%emt 0:00:05]} 66. Qe3+ {[%emt 0:00:27]} Kh4 {[%emt 0:00:09]} 67. Qf2+ {[%emt 0:01:11]} (67. g5 $142 Qd5+ 68. Kh2 Qd6+ 69. Kg1 Qc7 70. gxh6 c5 71. h7 (71. Bxb5 c4 $18) (71. Qe4+ Kg5 72. Qg4+ Kf6 73. Qg6+ Ke7 74. Qg7+ Kd8 75. Qxc7+ Kxc7) 71... Qg7+ 72. Kh1) 67... Kg5 $18 {[%emt 0:00:02]} 68. Qg3 {[%emt 0:00:13]} Qd4 {[%emt 0:02:11]} 69. Kh3 {[%emt 0:00:22]} Qd5 {[%emt 0:02:27]} 70. Qe3+ {[%emt 0:00:38]} Kf6 {[%emt 0:00:09]} 71. Qxh6+ {[%emt 0:00:22]} Kf7 {[%emt 0:00:13]} 72. Qf4+ {[%emt 0:00:05]} Ke7 {[%emt 0:00:04]} 73. Qf3 {[%emt 0:00:24]} Qe5 {[%emt 0:00:22]} 74. Bd3 {[%emt 0:01:17]} c5 {[%emt 0:00:47]} 75. Bxb5 {[%emt 0:00:20]} Qg5 {[%emt 0:00:42]} 76. a4 {[%emt 0:00:15]} Qd2 {[%emt 0:00:18]} 77. Qe2+ {[%emt 0:00:08]} 1-0

[Event "GEO-AZE Women Match 2024"]
[Site "Tbilisi"]
[Date "2024.02.27"]
[Round "1.4"]
[White "Mammadova, Gulnar"]
[Black "Javakhishvili, Lela"]
[Result "1/2-1/2"]
[ECO "C67"]
[WhiteElo "2351"]
[BlackElo "2433"]
[Annotator "TA"]
[PlyCount "67"]
[EventDate "2024.02.26"]
[EventType "team-tourn"]
[EventCountry "GEO"]
[SourceTitle "playchess.com"]
[Source "ChessBase"]
[SourceQuality "1"]
[WhiteTeam "Azerbaijan"]
[BlackTeam "Georgia"]
[WhiteTeamCountry "AZE"]
[BlackTeamCountry "GEO"]
[TimeControl "40/5400+30:1800+30"]

{[%evp 18,67,15,22,16,22,17,17,13,-8,-7,-7,-14,-11,-5,-2,-8,-12,-10,-9,-9,-8,0,0,0,0,0,0,0,0,0,0,0,0,0,0,0,0,8,8,6,0,0,0,0,0,0,62,0,0,0,0]} 1. e4 {[%emt 0:00:03]} e5 {[%emt 0:00:17]} 2. Nf3 {[%emt 0:00:17]} Nc6 {[%emt 0:00:07]} 3. Bb5 {[%emt 0:00:28]} Nf6 {[%emt 0:00:29]} 4. O-O {[%emt 0:00:56][%cal Bh1f1,Bf1e1,Be1e5][%mdl 32]} Nxe4 {[%emt 0:00:18]} 5. Re1 {[%emt 0:00:09]} Nd6 {[%emt 0:00:05]} 6. Nxe5 {[%emt 0:00:44]} Be7 {[%emt 0:00:06][%cal Bf8e7,Be7f6,Bf6d4][%mdl 32]} 7. Bf1 {[%emt 0:00:11]} Nxe5 {[%emt 0:00:07]} 8. Rxe5 {[%emt 0:00:06]} O-O {[%emt 0:00:04]} 9. d4 {[%emt 0:00:15]} Bf6 {[%emt 0:00:07]} 10. Re1 {[%emt 0:00:11]} Re8 {[%emt 0:00:23]} 11. Bf4 {[%emt 0:00:28]} Rxe1 {[%emt 0:00:24]} 12. Qxe1 {[%emt 0:00:05]} Ne8 {[%emt 0:00:27]} 13. Nc3 {[%emt 0:00:35]} Bxd4 {[%emt 0:00:36]} 14. Nd5 {[%emt 0:01:06] [#] Hoping for Qe4.} d6 {[%emt 0:00:28][%cal Oe8f6]} 15. Bg5 {[%emt 0:00:48]} f6 {[%emt 0:00:18]} 16. Bh4 {[%emt 0:00:42]} g5 {[%emt 0:00:15]} 17. Qe4 {[%emt 0:04:57]} Bxb2 {[%emt 0:00:11]} 18. Re1 {[%emt 0:02:17]} Be5 {[%emt 0:00:09][%cal Oc8e6]} 19. f4 $132 {[%emt 0:01:07][%mdl 2048] White is fighting back} gxh4 {[%emt 0:00:09]} 20. fxe5 {[%emt 0:00:17]} dxe5 {[%emt 0:00:05] Threatens to win with ...c6.} 21. Bd3 $1 {[%emt 0:00:28]} Bf5 {[%emt 0:01:23]} 22. Qxf5 {[%emt 0:00:28]} Qxd5 {[%emt 0:00:06]} 23. Qxh7+ {[%emt 0:00:12]} Kf8 {[%emt 0:00:08]} 24. Qh6+ {[%emt 0:00:26]} Kf7 {[%emt 0:05:55]} 25. Qh5+ {[%emt 0:07:40]} (25. Qh7+ Kf8 $16) 25... Kf8 {[%emt 0:02:35]} 26. Qh6+ {[%emt 0:00:07]} Kf7 {[%emt 0:00:29]} 27. Bg6+ {[%emt 0:21:16]} ({But not} 27. Qh7+ Kf8 $16) 27... Ke7 {[%emt 0:05:36]} 28. Qh7+ {[%emt 0:06:42]} Kf8 $1 {[%emt 0:04:01]} 29. Qh6+ {[%emt 0:04:53]} Ke7 {[%emt 0:00:56]} 30. Rf1 {[%emt 0:09:22]} Qg8 {[%emt 0:08:18] aiming for ...Qg7.} 31. Bxe8 {[%emt 0:05:01]} Rxe8 {[%emt 0:00:20]} 32. Qxf6+ {[%emt 0:00:07]} Kd7 {[%emt 0:00:03]} 33. Qxh4 {[%emt 0:01:06]} Kc8 {[%emt 0:10:18][%cal Oe5e4]} 34. Qh3+ {[%emt 0:01:30] A balanced but interesting game.   Weighted Error Value: White=0.01 (flawless) /Black=0.01 (flawless) .  OK:         	White=14    	Black=8      Best:        	White=2     	Black=4      Strong:       	White=1     	Black=1} 1/2-1/2